Cogmind - Beta 14 @@@ ROGUE MODE // 2024.08.28 @ 17:23:20 Player: DZKane Result: Destroyed by G-50 Soldier with Heavy Laser Performance ------------- Evolutions (4) 2000 Regions Visited (16) 3200 Robots Destroyed (375) 1875 Value Destroyed (12253) 12253 Prototype IDs (53) 1060 Alien Tech Used (0) 0 Bonus (5539) 5539 TOTAL SCORE: 25927 Bonus ------- High Alert Combat Kills 3351 Follower Combat Kills 1772 Network Hubs Disabled 400 Aligned with FarCom 300 Met Data Miner 300 Built Enhanced Grunts 300 Friendly Fire -884 Cogmind --------- Core Integrity 0/850 Matter 206/300 Energy 160/160 System Corruption 46% Temperature Cool (9) Movement Core (1500) Ox29 Location -6/Hub_04(d) Parts ------- > --- POWER (2) -------- Light Nuclear Core > --- PROPULSION (2) --- (None) > --- UTILITY (7) ------ Advanced Heat Sink Huge Storage Unit > --- WEAPON (4) ------- Improved Heavy Machine Gun > --- INVENTORY (25) --- Centrium Heavy Treads Flying Fortress v7 Energy Well (350) High-capacity Matter Pod (200) High-capacity Matter Pod (12) Advanced Terrain Scanner Authchip [Device] High-powered Tractor Beam Heavy Plasma Cannon Chainsword Peak State ------------ > --- POWER ------------ Fission Core Quantum Reactor > --- PROPULSION ------- Centrium Heavy Treads > --- UTILITY ---------- Improved Cooling System Coolant Injector Huge Storage Unit Advanced Targeting Computer Weapon Cycler Centrium Medium Armor Plating Centrium Medium Armor Plating > --- WEAPON ----------- Plasma Rifle Plasma Rifle Plasma Rifle Advanced KE Penetrator > --- INVENTORY -------- Centrium Heavy Treads Centrium Heavy Treads Flying Fortress v7 Energy Well High-capacity Matter Pod High-capacity Matter Pod Advanced Terrain Scanner Improved Medium Armor Plating Improved Medium Armor Plating Improved Medium Armor Plating Authchip [Device] High-powered Tractor Beam Improved Trap Extractor Gatling Laser Plasma Rifle Heavy Plasma Cannon Advanced KE Penetrator Heavy Rocket Launcher Heavy Missile Launcher Chainsword [Rating: 102] Favorites ----------- Power Heavy Deuterium Engine Engine Heavy Deuterium Engine Power Core Fission Core Reactor Quantum Reactor Propulsion Armored Wheel Treads Light Treads Wheel Armored Wheel Utility Huge Storage Unit Device Improved Cooling System Storage Huge Storage Unit Processor Advanced Targeting Computer Hackware Improved Hacking Suite Protection Improved Medium Armor Plating Weapon Gauss Rifle Energy Gun Plasma Rifle Ballistic Gun Gauss Rifle Ballistic Cannon Mini Assault Cannon Launcher Heavy Missile Launcher Impact Weapon Great Maul Slashing Weapon Chainsword Build | -11 -10 -9 -9 -9 -8 -8 -7 -7 -7 -7 -6 -6 -6 -6 -6 -6 ------- Run | Yrd Mat Mat Min Exi Min Mat Fac Low Low Dat Pro Fac Ext Cet Arc Hub Slots Evolved 8 | . . 2 . . . 2 2 . . . . 2 . . . . Power 1 | . . . . . . . . . . . . 1 . . . . Propulsion . | . . . . . . . . . . . . . . . . . Utility 5 | . . . . . . 2 2 . . . . 1 . . . . Weapon 2 | . . 2 . . . . . . . . . . . . . . Parts Attached 329 | 7 19 23 2 1 . 39 33 19 13 . 3 75 46 13 4 32 Power 34 | 1 5 2 . 1 . 2 3 . . . . 7 7 1 2 3 Engine 23 | 1 5 2 . 1 . 2 3 . . . . 5 4 . . . Core 7 | . . . . . . . . . . . . 2 2 . 2 1 Reactor 4 | . . . . . . . . . . . . . 1 1 . 2 Propulsion 24 | 2 3 1 2 . . 3 2 . . . . 1 2 7 . 1 Treads 7 | 2 . . . . . . . . . . . . . 4 . 1 Leg . | . . . . . . . . . . . . . . . . . Wheel 17 | . 3 1 2 . . 3 2 . . . . 1 2 3 . . Hover . | . . . . . . . . . . . . . . . . . Flight . | . . . . . . . . . . . . . . . . . Utility 129 | 2 7 6 . . . 13 10 13 6 . 3 36 19 2 . 12 Device 75 | 1 . 1 . . . 3 7 12 5 . 3 26 9 . . 8 Storage 6 | 1 1 2 . . . 1 . . . . . 1 . . . . Processor 3 | . . . . . . 2 1 . . . . . . . . . Hackware 4 | . . . . . . . . . . . . 3 . . . 1 Protection 41 | . 6 3 . . . 7 2 1 1 . . 6 10 2 . 3 Artifact . | . . . . . . . . . . . . . . . . . Weapon 142 | 2 4 14 . . . 21 18 6 7 . . 31 18 3 2 16 Energy Gun 39 | 1 4 2 . . . 4 6 1 3 . . 3 7 1 2 5 Energy Cannon . | . . . . . . . . . . . . . . . . . Ballistic Gun 72 | 1 . 11 . . . 14 8 2 2 . . 18 8 2 . 6 Ballistic Cannon 3 | . . . . . . . 3 . . . . . . . . . Launcher 11 | . . . . . . 1 . 1 2 . . 1 3 . . 3 Special Weapon . | . . . . . . . . . . . . . . . . . Impact Weapon 3 | . . 1 . . . 2 . . . . . . . . . . Slashing Weapon 14 | . . . . . . . 1 2 . . . 9 . . . 2 Piercing Weapon . | . . . . . . . . . . . . . . . . . Special Melee Weapon . | . . . . . . . . . . . . . . . . . Unidentified Prototypes 10 | . . 2 . . . 1 3 . . . . 1 . 3 . . Corrupted Parts 4 | . . . . . . . . . . . . . . 4 . . System Corruption 13 | . . . . . . . . . . . . . . 13 . . Parts Lost 44 | . . 2 . . . 12 1 . . . . 1 8 . . 20 Power 5 | . . . . . . 1 . . . . . . 2 . . 2 Propulsion 4 | . . . . . . . 1 . . . . . 1 . . 2 Utility 15 | . . 1 . . . 2 . . . . . 1 3 . . 8 Weapon 20 | . . 1 . . . 9 . . . . . . 2 . . 8 Highest Loss Streak 14 | . . 1 . . . 4 1 . . . . 1 5 . . 14 To Critical Strikes . | . . . . . . . . . . . . . . . . . Average Slot Usage (%) 94 | . 99 99 100 100 100 98 96 91 92 92 92 90 91 92 93 87 Engine 7 | . 13 11 11 11 11 8 7 7 7 7 7 5 8 1 . . Core 1 | . . . . . . . . . . . . 7 2 6 6 . Wheel 11 | . 24 22 22 22 22 17 11 7 7 7 7 6 5 5 6 5 Device 11 | . 2 2 . . . 2 15 15 15 15 15 15 19 20 20 18 Storage 7 | . 14 11 11 11 11 9 7 7 7 7 7 6 6 6 6 6 Processor 9 | . . . . . . 9 13 15 15 15 15 13 6 6 6 5 Protection 9 | . 11 8 11 11 11 15 8 6 7 7 7 6 12 13 13 8 Energy Gun 6 | . 25 2 . . . 3 9 3 2 15 15 2 6 23 26 21 Ballistic Gun 21 | . 2 40 44 44 44 30 9 21 21 15 15 21 18 2 . 1 Slashing Weapon 1 | . . . . . . . 5 5 5 . . 1 . . . . Peak Build Rating 102 | 9 14 26 26 29 29 36 59 59 59 55 59 76 77 102 93 94 Average Rating 52 | 5 12 23 26 27 29 33 50 55 54 55 57 71 72 86 91 86 On Entrance 45 | . 9 13 26 26 29 29 35 59 55 55 55 59 71 72 90 93 Naked Turns . | . . . . . . . . . . . . . . . . . Heaviest Build 155 | 11 28 107 107 107 107 114 120 122 125 119 125 155 155 146 150 153 Greatest Support 80 | 40 40 24 24 24 24 24 28 28 28 28 28 28 28 80 28 80 Greatest Overweight (x) 44 | . 1 4 4 4 4 8 9 4 4 4 4 5 5 44 5 5 Average Overweight (x) 3 | . . 2 4 4 4 4 4 4 4 4 4 4 4 4 5 4 Largest Inventory Capacity 25 | 8 10 25 25 25 25 25 25 25 25 25 25 25 25 25 25 25 Average Capacity 23 | 7 8 17 25 25 25 25 25 25 25 25 25 25 25 25 25 25 Most Carried 25 | 8 8 25 25 25 25 25 25 25 25 25 25 25 25 25 25 25 Average Carried 23 | 4 7 15 24 24 24 24 24 24 25 25 24 24 24 24 25 23 Final Capacity 25 | 8 10 25 25 25 25 25 25 25 25 25 25 25 25 25 25 25 Final Carried 25 | 7 8 25 25 25 25 25 25 25 25 25 25 24 25 25 25 14 Class Distribution -------------------- 47% | Tank 18% | Gunner 8% | Skirmisher 7% | Scavenger-Tank 5% | Assassin 5% | Mutant Dominant Class ---------------- Mutant | -10/Materials Tank | -9/Materials Tank | -9/Mines Tank | -9/Exiles Skirmisher | -8/Mines Tank | -8/Materials Assassin | -7/Factory Gunner | -7/Lower Caves Gunner | -7/Lower Caves Gunner | -7/Data Miner Tank | -6/Proximity Caves Tank | -6/Factory Tank | -6/Extension Scavenger-Tank | -6/Cetus Scavenger-Tank | -6/Archives Scavenger-Skirmisher | -6/Hub_04(d) Resources | -11 -10 -9 -9 -9 -8 -8 -7 -7 -7 -7 -6 -6 -6 -6 -6 -6 ----------- Run | Yrd Mat Mat Min Exi Min Mat Fac Low Low Dat Pro Fac Ext Cet Arc Hub Matter Collected 11852 | 273 214 1909 98 . 70 1847 617 484 450 . 88 2244 2124 175 72 1187 Remotely 1720 | . . . . . . . . 103 . . . 484 630 . . 503 Salvage Created 15937 | 109 843 2159 198 . 126 2903 785 524 362 . 87 3638 2580 156 . 1467 Parts 814 | 9 51 134 17 . 10 155 56 17 20 . 2 179 105 2 . 57 Haulers Intercepted 21 | . 2 6 . . . 3 . . . . . 5 4 . . 1 Recyclers Shooed 10 | . . 1 . . 1 1 . . . . . 4 3 . . . Parts Field Recycled . | . . . . . . . . . . . . . . . . . Retrieved Matter . | . . . . . . . . . . . . . . . . . Parts Self-Destructed 27 | . . . . . . . . 17 8 . 2 . . . . . Prevented . | . . . . . . . . . . . . . . . . . Kills | -11 -10 -9 -9 -9 -8 -8 -7 -7 -7 -7 -6 -6 -6 -6 -6 -6 ------- Run | Yrd Mat Mat Min Exi Min Mat Fac Low Low Dat Pro Fac Ext Cet Arc Hub Combat Hostiles Destroyed 255 | . 15 44 9 . 2 48 11 9 11 . 2 38 36 2 . 28 Guns 222 | . 15 44 9 . 2 47 8 7 6 . 2 37 29 2 . 14 Cannons 3 | . . . . . . . 3 . . . . . . . . . AOE 27 | . . . . . . . . 2 5 . . . 7 . . 13 Classes Destroyed 22 | 2 5 6 . . . . 2 1 1 . . 4 1 . . . Worker 29 | . . 5 . . . 5 3 . . . . 3 6 . . 7 Builder 16 | . 1 1 . . . 3 1 . . . . 4 2 . . 4 Tunneler 9 | 2 . . . . 1 1 . . . . . 3 . . . 2 Hauler 21 | . 2 6 . . . 3 . . . . . 5 4 . . 1 Recycler 24 | 1 2 2 . . 1 4 2 . . . . 6 4 . . 2 Carrier 1 | . . . . . . . . . . . . . 1 . . . Minesweeper 2 | . . . . . . . . 1 1 . . . . . . . Mechanic 1 | . . . . . . . . . . . . 1 . . . . Operator 2 | . . 1 . . . 1 . . . . . . . . . . Watcher 15 | . 2 5 . . . 3 2 . . . . 1 2 . . . Swarmer 62 | . 6 13 7 . 2 8 . 3 6 . . 3 12 . . 2 Grunt 109 | . 9 19 2 . . 26 2 4 1 . . 18 17 . . 11 Brawler 2 | . . 1 . . . 1 . . . . . . . . . . Duelist 4 | . . 1 . . . 1 . 1 . . . . . . . 1 Protector 5 | . . 1 . . . 2 . . . . . . . . . 2 Sentry 37 | . . 9 . . . 10 4 . . . 1 6 4 . . 3 Specialist 1 | . . . . . . . . . . . . 1 . . . . Hunter 4 | . . . . . . . 2 . . . . 1 . . . 1 Programmer 14 | . . . . . . . 3 1 . . 1 7 1 . . 1 Heavy 2 | . . . . . . . . . . . . 1 . . . 1 Behemoth 3 | . . . . . . . . . . . . 1 2 . . . Cetus Guard 2 | . . . . . . . . . . . . . . 2 . . Enhanced Grunt 2 | . . . . . . . . . . . . . . . . 2 Lightning 6 | . . . . . . . . . . . . . . . . 6 Tinkerer 1 | . . . . . . . . . 1 . . . . . . . Thug 4 | . . . . . . . . . 4 . . . . . . . Best Kill Streak 30 | 2 5 8 4 . 4 7 4 3 4 . 1 5 11 2 . 30 Combat Bots Only 16 | . 5 5 4 . 2 4 1 3 4 . 1 4 7 2 . 16 Max Kills in Single Turn 6 | 1 1 2 3 . 1 2 2 2 2 . 1 2 6 1 . 4 Gunslinging 2 | . . 1 2 . . 1 . 1 . . . 1 2 . . 1 Exploded 4 | . . . . . . . . 2 2 . . . 2 . . 4 Melee . | . . . . . . . . . . . . . . . . . Uniques/NPCs Destroyed . | . . . . . . . . . . . . . . . . . Combat | -11 -10 -9 -9 -9 -8 -8 -7 -7 -7 -7 -6 -6 -6 -6 -6 -6 -------- Run | Yrd Mat Mat Min Exi Min Mat Fac Low Low Dat Pro Fac Ext Cet Arc Hub Hostile Shots Fired 1508 | . 80 149 17 . . 209 114 27 40 . 39 261 265 16 3 288 Missed 445 | . 27 44 2 . . 47 33 8 6 . 11 96 101 6 . 64 Damage Taken 14760 | . 542 1046 148 . . 2468 795 260 573 . 170 1188 2872 188 69 4441 Core 1358 | . 37 127 9 . . 154 57 13 74 . 20 119 249 . 25 474 Absorbed by Shields 2016 | . . 141 . . . . 55 95 81 . 114 961 147 59 . 363 Reduced by Siege Mode 128 | . . . . . . . . . . . . . . . . 128 Redirected to Shielding 170 | . . 22 . . . 125 23 . . . . . . . . . Ignored by Resistances 13 | . . . . . . . . . . . . 13 . . . . Regen/Repaired (Parts) 610 | . 112 160 . . . 245 93 . . . . . . . . . Core Remaining (%) 79 | 100 85 . . . 66 72 . . . . 76 . . . . . Volleys Fired 690 | 13 58 105 7 . 5 132 42 23 26 . 6 101 96 8 1 67 Largest 4 | 2 2 4 4 . 4 4 4 4 4 . 4 4 4 4 4 4 Hottest 312 | 60 90 135 92 . 92 205 211 211 164 . 211 215 253 253 300 312 Shots Fired 2277 | 25 116 407 26 . 20 494 115 68 69 . 24 384 337 29 4 159 Gun 2205 | 25 116 407 26 . 20 494 101 66 61 . 24 383 321 29 4 128 Cannon 14 | . . . . . . . 14 . . . . . . . . . Launcher 58 | . . . . . . . . 2 8 . . 1 16 . . 31 Special . | . . . . . . . . . . . . . . . . . Kinetic 1827 | 13 14 384 26 . 20 469 74 57 54 . 13 347 289 8 . 59 Thermal 265 | 12 14 . . . . 15 35 9 7 . 11 36 32 21 4 69 Explosive 58 | . . . . . . . . 2 8 . . 1 16 . . 31 Electromagnetic 127 | . 88 23 . . . 10 6 . . . . . . . . . Robot Hit Streak 38 | 5 12 15 10 . 7 38 14 16 19 . 14 17 16 9 1 15 Robot Miss Streak 13 | 3 3 13 1 . 2 7 10 3 2 . 1 4 4 1 1 4 Penetration Max 2 | . . . . . . . . . . . . 2 1 . . 1 Secondary Targets 44 | . 2 6 4 . . 10 . 2 . . . 6 9 1 . 4 Max Gunslinging Chain 2 | . 1 1 2 . . 2 . 2 . . . 1 2 1 . 1 Shots Hit Robots 1465 | 16 63 228 21 . 7 322 79 54 44 . 16 275 208 26 2 104 Core Hits 786 | 6 25 98 10 . 4 132 62 19 26 . 6 127 127 11 . 133 Critical Kills 20 | . . 4 . . . 1 . . . . . 5 7 . . 3 Critical Parts Destroyed 19 | . . 1 . . . 1 . 1 . . 1 4 9 . . 2 Critical Strikes 54 | . . 6 . . . 6 1 1 . . 1 13 18 . . 8 Burn 11 | . . . . . . 3 . . . . . 3 2 . . 3 Destroy 41 | . . 6 . . . 2 . 1 . . 1 10 16 . . 5 Corrupt 1 | . . . . . . 1 . . . . . . . . . . Sever 1 | . . . . . . . 1 . . . . . . . . . Melee Attacks 54 | . . . . . . 3 11 7 3 . . 25 . . . 5 Impact 3 | . . . . . . 3 . . . . . . . . . . Slashing 51 | . . . . . . . 11 7 3 . . 25 . . . 5 Piercing . | . . . . . . . . . . . . . . . . . Sneak Attacks 9 | . . . . . . . 1 2 1 . . 5 . . . . Combat Hostiles . | . . . . . . . . . . . . . . . . . Follow-up Attacks . | . . . . . . . . . . . . . . . . . Damage Inflicted 37613 | 128 967 3741 354 . 112 5298 1798 1469 1540 . 456 6402 7367 565 44 7372 Guns 27524 | 128 898 3652 354 . 112 5228 1438 880 914 . 456 5921 4685 565 44 2249 Cannons 188 | . . . . . . . 188 . . . . . . . . . Explosions 8621 | . 69 89 . . . . 67 134 381 . . 76 2682 . . 5123 Melee 1275 | . . . . . . 70 105 455 245 . . 400 . . . . Ramming 5 | . . . . . . . . . . . . 5 . . . . Kinetic 22082 | 37 67 3501 354 . 112 4820 890 681 759 . 175 5210 4166 149 . 1161 Thermal 4564 | 91 204 . . . . 223 633 199 155 . 281 711 519 416 44 1088 Explosive 7783 | . . 89 . . . . . 134 381 . . 76 2682 . . 4421 Electromagnetic 1904 | . 696 151 . . . 185 170 . . . . . . . . 702 Impact 70 | . . . . . . 70 . . . . . . . . . . Slashing 1205 | . . . . . . . 105 455 245 . . 400 . . . . Piercing . | . . . . . . . . . . . . . . . . . Highest Corruption 46 | . . . . . . . . . . . 3 4 4 17 17 46 Average Corruption 5 | . . . . . . . . . . . 2 1 4 13 17 18 Corruption Purged 5 | . . . . . . . . . . . . . . . . 5 Corruption Blocked . | . . . . . . . . . . . . . . . . . Effects 200 | . . . . . . . . . . . 14 35 64 18 6 63 Message Errors 40 | . . . . . . . . . . . 4 6 18 1 2 9 Matter Fused 44 | . . . . . . . . . . . 1 9 11 6 1 16 Heat Flow Errors 28 | . . . . . . . . . . . 2 6 9 3 2 6 Energy Discharges 22 | . . . . . . . . . . . 1 5 6 4 . 6 Parts Rejected 1 | . . . . . . . . . . . . . . . . 1 Parts Fused 1 | . . . . . . . . . . . . . . 1 . . Data Loss (minor) 19 | . . . . . . . . . . . 1 3 5 3 1 6 Data Loss (major) 9 | . . . . . . . . . . . 2 1 4 . . 2 Misfires 9 | . . . . . . . . . . . 1 3 3 . . 2 Alerts 5 | . . . . . . . . . . . 1 1 2 . . 1 Weapon Failures 22 | . . . . . . . . . . . 1 1 6 . . 14 Overload Shots . | . . . . . . . . . . . . . . . . . Overflow Damage 651 | . . 49 . . . 27 . 161 120 . . 142 65 . . 87 Projectiles . | . . . . . . . . . . . . . . . . . Explosions 201 | . . 49 . . . . . . . . . . 65 . . 87 Melee 450 | . . . . . . 27 . 161 120 . . 142 . . . . Knockbacks 1 | . . . . . . 1 . . . . . . . . . . Impact 1 | . . . . . . 1 . . . . . . . . . . Kinetic . | . . . . . . . . . . . . . . . . . Secondary . | . . . . . . . . . . . . . . . . . Self-Inflicted Damage 278 | . . . . . . . 70 . 56 . . 2 45 . . 105 Shots 11 | . . . . . . . 3 . 2 . . . 1 . . 5 Rammed 2 | . . . . . . . . . . . . 1 . . . 1 Targets Rammed 2 | . . . . . . . . . . . . 1 . . . 1 Kicked . | . . . . . . . . . . . . . . . . . Crushed . | . . . . . . . . . . . . . . . . . Highest Temperature 600 | 40 234 228 83 . 47 415 63 58 57 . 240 410 441 214 184 600 Average Temperature 86 | 20 79 63 36 . 24 89 23 18 23 . 67 92 83 127 96 186 Received Heat Transfer 4133 | . 165 343 36 . . 1260 171 42 104 . 32 780 675 17 9 499 Effects 15 | . . . . . . 2 . . . . . 5 1 . . 7 Shutdowns 5 | . . . . . . . . . . . . 2 . . . 3 Energy Bleed 3 | . . . . . . 1 . . . . . 2 . . . . Interference 2 | . . . . . . . . . . . . 1 . . . 1 Matter Decay 1 | . . . . . . . . . . . . . . . . 1 Short Circuit 2 | . . . . . . . . . . . . . 1 . . 1 Damage (minor) 2 | . . . . . . 1 . . . . . . . . . 1 Siege Activations 1 | . . . . . . . . . . . . . . . . 1 Total Turns 99 | . . . . . . . . . . . . . . . . 99 Longest Duration 99 | . . . . . . . . . . . . . . . . 99 Robots Corrupted 5 | . . . . . . 2 . . . . . . . . . 3 Combat Hostiles 1 | . . . . . . 1 . . . . . . . . . . Parts Fried 7 | . 4 . . . . . . . . . . . . . . 3 Impact Corruptions 2 | . . . . . . 2 . . . . . . . . . . Robots Melted 2 | . . . . . . . . . . . . 1 . . . 1 Combat Hostiles 2 | . . . . . . . . . . . . 1 . . . 1 Parts Melted 21 | . . . . . . . 1 . . . 2 2 6 5 . 5 Heat Transferred 9522 | 200 350 . . . . 541 942 340 350 . 511 1615 1350 950 100 2273 Parts Sabotaged 2 | . . . . . . . . . . . . . . . . 2 Parts Stolen . | . . . . . . . . . . . . . . . . . Parts Stripped . | . . . . . . . . . . . . . . . . . Power Chain Reactions 2 | . 1 . . . . . 1 . . . . . . . . . Alert | -11 -10 -9 -9 -9 -8 -8 -7 -7 -7 -7 -6 -6 -6 -6 -6 -6 ------- Run | Yrd Mat Mat Min Exi Min Mat Fac Low Low Dat Pro Fac Ext Cet Arc Hub Peak Influence 2180 | 15 382 1033 627 . 90 715 385 . . . . 819 1377 810 415 2180 Initial 744 | . 9 137 402 . . 35 272 . . . . . 401 744 244 144 Average 499 | 7 241 637 438 . 45 463 194 . . . . 304 900 781 386 955 Maximum Alert Level 5 | . 1 3 2 . . 3 1 . . . . 3 4 3 2 5 Low Security (%) 23 | 100 26 1 . . 100 8 59 . . . . 51 . . . 3 Level 1 21 | . 73 25 23 . . 19 40 . . . . 14 . . 24 19 Level 2 29 | . . 21 76 . . 71 . . . . . 21 26 10 75 19 Level 3 19 | . . 52 . . . . . . . . . 13 46 89 . 14 Level 4 5 | . . . . . . . . . . . . . 26 . . 24 Level 5 1 | . . . . . . . . . . . . . . . . 18 High Security . | . . . . . . . . . . . . . . . . . Max Security . | . . . . . . . . . . . . . . . . . Squads Dispatched 56 | . 4 4 . . . 7 5 . . . . 16 7 . . 13 Investigation 17 | . 3 2 . . . 2 . . . . . 5 1 . . 4 Extermination 13 | . . . . . . . 3 . . . . 7 . . . 3 Reinforcement 15 | . 1 1 . . . 2 2 . . . . 4 2 . . 3 Assault 9 | . . 1 . . . 2 . . . . . . 4 . . 2 Garrison 2 | . . . . . . 1 . . . . . . . . . 1 Intercept . | . . . . . . . . . . . . . . . . . Searches Triggered . | . . . . . . . . . . . . . . . . . Data Miner Redirects 3 | . . . . . . . . . . . . . 3 . . . Construction Impeded 5 | . . . . . . 1 . . . . . 1 2 . . 1 Haulers Reinforced 2 | . . . . . . . 1 . . . . . . . . 1 Active Scanning Responses . | . . . . . . . . . . . . . . . . . Cargo Convoy Interrupts . | . . . . . . . . . . . . . . . . . Stealth | -11 -10 -9 -9 -9 -8 -8 -7 -7 -7 -7 -6 -6 -6 -6 -6 -6 --------- Run | Yrd Mat Mat Min Exi Min Mat Fac Low Low Dat Pro Fac Ext Cet Arc Hub Distress Signals 16 | . 2 4 . . . 3 . . . . . 1 1 1 . 4 Communications Jammed . | . . . . . . . . . . . . . . . . . Distress Signals . | . . . . . . . . . . . . . . . . . Times Spotted 369 | . 23 57 9 . 2 69 20 9 11 . 2 41 58 5 4 59 Peak Tracking Total 9 | . 6 5 4 . 4 5 3 3 4 . 1 4 8 5 1 9 Tactical Retreats 16 | . 5 2 . . 1 2 . . . . . 1 2 . . 3 Traps | -11 -10 -9 -9 -9 -8 -8 -7 -7 -7 -7 -6 -6 -6 -6 -6 -6 ------- Run | Yrd Mat Mat Min Exi Min Mat Fac Low Low Dat Pro Fac Ext Cet Arc Hub Traps Triggered 11 | . 6 1 . . . . . . . . . . 3 . . 1 Indirectly . | . . . . . . . . . . . . . . . . . Trap Hack Attempts . | . . . . . . . . . . . . . . . . . Triggered . | . . . . . . . . . . . . . . . . . Disarmed . | . . . . . . . . . . . . . . . . . Reprogrammed . | . . . . . . . . . . . . . . . . . Reused 1 | . . . . . . . . . . . . 1 . . . . Traps Extracted . | . . . . . . . . . . . . . . . . . Installed 6 | . . . . . . . . . . . . 1 . . . 5 Triggered 1 | . . . . . . . . . . . . 1 . . . . Most Traps Carried 6 | . . . . . . . . 4 6 6 6 6 5 5 5 5 Machines | -11 -10 -9 -9 -9 -8 -8 -7 -7 -7 -7 -6 -6 -6 -6 -6 -6 ---------- Run | Yrd Mat Mat Min Exi Min Mat Fac Low Low Dat Pro Fac Ext Cet Arc Hub Machines Disabled 41 | . 2 3 1 . . 1 4 . . . . 3 6 . 1 20 Max in Single Turn 12 | . 1 2 1 . . 1 4 . . . . 2 1 . . 12 Garrison Access 2 | . . . . . . 1 1 . . . . . . . . . Network Hub 2 | . . . . . . . . . . . . . . . . 2 Machines Repaired . | . . . . . . . . . . . . . . . . . Machines Dismantled . | . . . . . . . . . . . . . . . . . Machines Sabotaged . | . . . . . . . . . . . . . . . . . Overloaded Fab Kills . | . . . . . . . . . . . . . . . . . Hacking | -11 -10 -9 -9 -9 -8 -8 -7 -7 -7 -7 -6 -6 -6 -6 -6 -6 --------- Run | Yrd Mat Mat Min Exi Min Mat Fac Low Low Dat Pro Fac Ext Cet Arc Hub Machines Accessed 87 | . 9 13 . 1 . 16 14 . . 4 . 20 7 . . 3 Terminals 52 | . 6 9 . . . 11 9 . . . . 8 6 . . 3 Fabricators 5 | . . . . . . . . . . . . 5 . . . . Repair Stations 11 | . 1 2 . . . 2 2 . . . . 3 1 . . . Recycling Units 4 | . 2 . . . . . . . . . . 2 . . . . Scanalyzers 8 | . . 2 . . . 2 2 . . . . 2 . . . . Garrison Access 2 | . . . . . . 1 1 . . . . . . . . . Total Hacks 249 | . 23 47 . 1 . 49 27 . . 28 . 51 17 . . 6 Successful 151 | . 13 34 . 1 . 31 16 . . 28 . 19 8 . . 1 Failed 97 | . 10 12 . . . 18 11 . . . . 32 9 . . 5 Catastrophic 17 | . . 1 . . . 3 4 . . . . 5 2 . . 2 Database Lockouts 1 | . . 1 . . . . . . . . . . . . . . Manual 83 | . 15 20 . 1 . 20 5 . . . . 15 4 1 . 2 Terminals 125 | . 17 28 . . . 27 13 . . . . 19 15 . . 6 Fabricators 15 | . . . . . . . . . . . . 15 . . . . Repair Stations 39 | . 4 8 . . . 10 6 . . . . 9 2 . . . Recycling Units 5 | . 2 . . . . . . . . . . 3 . . . . Scanalyzers 34 | . . 11 . . . 11 7 . . . . 5 . . . . Garrison Access 2 | . . . . . . 1 1 . . . . . . . . . Terminal Hacks 60 | . 4 10 . 1 . 5 5 . . 28 . 4 3 . . . Record 11 | . . . . . . . . . . 11 . . . . . . Part Schematic 13 | . . . . . . 1 2 . . 8 . 1 1 . . . Robot Schematic 6 | . . . . . . . . . . 6 . . . . . . Robot Analysis 5 | . 2 2 . . . 1 . . . . . . . . . . Prototype ID Bank 6 | . . 1 . . . 1 . . . 3 . 1 . . . . Open Door 1 | . . . . . . . . . . . . 1 . . . . Branch Access Points 2 | . . . . . . 1 . . . . . 1 . . . . Emergency Access Points 1 | . . 1 . . . . . . . . . . . . . . Alert Level 1 | . . . . . . . . . . . . . 1 . . . Unreport Threat 2 | . . . . . . 1 1 . . . . . . . . . Locate Traps 6 | . 2 2 . . . . 1 . . . . . 1 . . . Transport Status 1 | . . 1 . . . . . . . . . . . . . . Hauler Manifests 2 | . . 1 . . . . 1 . . . . . . . . . Zone Layout 2 | . . 2 . . . . . . . . . . . . . . Derelict Proto ID Bank 1 | . . . . 1 . . . . . . . . . . . . Fabricator Hacks 6 | . . . . . . . . . . . . 6 . . . . Network Status 1 | . . . . . . . . . . . . 1 . . . . Load Schematic 4 | . . . . . . . . . . . . 4 . . . . Build 1 | . . . . . . . . . . . . 1 . . . . Repair Station Hacks 25 | . 4 5 . . . 8 4 . . . . 2 2 . . . Scan Component 13 | . 2 3 . . . 4 2 . . . . 1 1 . . . Repair 12 | . 2 2 . . . 4 2 . . . . 1 1 . . . Recycling Unit Hacks . | . . . . . . . . . . . . . . . . . Scanalyzer 26 | . . 10 . . . 9 4 . . . . 3 . . . . Insert Component 13 | . . 5 . . . 4 2 . . . . 2 . . . . Analyze 13 | . . 5 . . . 5 2 . . . . 1 . . . . Garrison Access Hacks 2 | . . . . . . 1 1 . . . . . . . . . Seal Access 2 | . . . . . . 1 1 . . . . . . . . . Unauthorized Hacks 32 | . 5 9 . . . 8 2 . . . . 4 3 . . 1 Terminals 27 | . 3 8 . . . 8 2 . . . . 2 3 . . 1 Track 2 | . . 1 . . . . . . . . . . 1 . . . Botnet 12 | . 2 2 . . . 2 2 . . . . 2 2 . . . Skim 12 | . 1 5 . . . 6 . . . . . . . . . . Sabotage 1 | . . . . . . . . . . . . . . . . 1 Fabricators 1 | . . . . . . . . . . . . 1 . . . . Recompile 1 | . . . . . . . . . . . . 1 . . . . Repair Stations . | . . . . . . . . . . . . . . . . . Recycling Units 3 | . 2 . . . . . . . . . . 1 . . . . Mask 1 | . . . . . . . . . . . . 1 . . . . Tunnel 2 | . 2 . . . . . . . . . . . . . . . Scanalyzers 1 | . . 1 . . . . . . . . . . . . . . Extract 1 | . . 1 . . . . . . . . . . . . . . Garrison Access . | . . . . . . . . . . . . . . . . . Data Cores Recovered 2 | . . . . . . 1 . . . . . . . . . 1 Used . | . . . . . . . . . . . . . . . . . Hacking Detections 68 | . 6 9 . . . 13 12 . . . . 19 6 1 . 2 Full Trace Events 7 | . . . . . . 3 . . . . . 4 . . . . Feedback Events 2 | . . . . . . . . . . . . 2 . . . . Corruption 2 | . . . . . . . . . . . . 2 . . . . Feedback Blocked . | . . . . . . . . . . . . . . . . . Robot Schematics Acquired 6 | . . . . . . . . . . 6 . . . . . . Robots Built . | . . . . . . . . . . . . . . . . . Authchips . | . . . . . . . . . . . . . . . . . Time . | . . . . . . . . . . . . . . . . . Total Robot Build Rating . | . . . . . . . . . . . . . . . . . Part Schematics Acquired 27 | . . 8 . . . 5 3 . . 8 . 2 1 . . . Parts Built 2 | . . . . . . . . . . . . 2 . . . . Authchips . | . . . . . . . . . . . . . . . . . Time 106 | . . . . . . . . . . . . 106 . . . . Total Part Build Rating 12 | . . . . . . . . . . . . 12 . . . . Parts Repaired 11 | . 2 2 . . . 4 2 . . . . 1 . . . . Time 454 | . 64 76 . . . 134 36 . . . . 88 56 . . . Parts Recycled . | . . . . . . . . . . . . . . . . . Recycled Matter . | . . . . . . . . . . . . . . . . . Retrieved Matter . | . . . . . . . . . . . . . . . . . Retrieved Components . | . . . . . . . . . . . . . . . . . Parts Scanalyzed 12 | . . 5 . . . 4 1 . . . . 2 . . . . Part Schematics Acquired 11 | . . 5 . . . 4 1 . . . . 1 . . . . Parts Damaged 2 | . . . . . . 1 . . . . . 1 . . . . Bothacking | -11 -10 -9 -9 -9 -8 -8 -7 -7 -7 -7 -6 -6 -6 -6 -6 -6 ------------ Run | Yrd Mat Mat Min Exi Min Mat Fac Low Low Dat Pro Fac Ext Cet Arc Hub Used RIF Installer . | . . . . . . . . . . . . . . . . . Robots Hacked . | . . . . . . . . . . . . . . . . . Non-combat . | . . . . . . . . . . . . . . . . . Combat . | . . . . . . . . . . . . . . . . . Robot Hacks Applied . | . . . . . . . . . . . . . . . . . Relay Couplers Released . | . . . . . . . . . . . . . . . . . Fabnet Peak Effective % . | . . . . . . . . . . . . . . . . . Robots Rewired 8 | . . . . . . . . . . . . . 8 . . . Allies Hacked . | . . . . . . . . . . . . . . . . . Hacks Repelled . | . . . . . . . . . . . . . . . . . Allies | -11 -10 -9 -9 -9 -8 -8 -7 -7 -7 -7 -6 -6 -6 -6 -6 -6 -------- Run | Yrd Mat Mat Min Exi Min Mat Fac Low Low Dat Pro Fac Ext Cet Arc Hub Total Allies 24 | . . . . . . . . . . . . . 19 5 . . Largest Group 10 | . . . . . . . . . . . . . 10 7 7 5 Highest-Rated Group 639 | . . . . . . . . . . . . . 409 639 639 480 Highest-Rated Ally 159 | . . . . . . . . . . . . . 159 159 131 96 Total Orders 1 | . . . . . . . . . . . . . . . . 1 STAY 1 | . . . . . . . . . . . . . . . . 1 Ally Attacks 260 | . . . . . . . . . . . . . 117 22 30 91 Total Damage 7362 | . . . . . . . . . . . . . 2061 612 1024 3665 Kills 57 | . . . . . . . . . . . . . 24 3 4 26 Allies Corrupted 2 | . . . . . . . . . . . . . . . . 2 Allies Melted . | . . . . . . . . . . . . . . . . . Intel | -11 -10 -9 -9 -9 -8 -8 -7 -7 -7 -7 -6 -6 -6 -6 -6 -6 ------- Run | Yrd Mat Mat Min Exi Min Mat Fac Low Low Dat Pro Fac Ext Cet Arc Hub Robot Analysis Total 5 | . 2 2 . . . 1 . . . . . . . . . . Derelict Logs Recovered 12 | . . . 3 . . . . 3 3 . 3 . . . . . Drone Launches . | . . . . . . . . . . . . . . . . . Drone Recoveries . | . . . . . . . . . . . . . . . . . Exploration | -11 -10 -9 -9 -9 -8 -8 -7 -7 -7 -7 -6 -6 -6 -6 -6 -6 ------------- Run | Yrd Mat Mat Min Exi Min Mat Fac Low Low Dat Pro Fac Ext Cet Arc Hub Turns Passed 22491 | 137 979 2091 1052 351 192 2802 2084 1951 2046 120 924 3533 2476 448 174 1131 Spaces Moved 11784 | 56 620 1188 679 232 110 1359 1056 1144 1200 76 553 1595 1225 129 93 469 Core 5 | 4 . . . . . . . . . . . . . 1 . . Treads 130 | 52 56 . . . . . . . . . . . . 8 . 14 Legs . | . . . . . . . . . . . . . . . . . Wheels 11649 | . 564 1188 679 232 110 1359 1056 1144 1200 76 553 1595 1225 120 93 455 Hover . | . . . . . . . . . . . . . . . . . Flight . | . . . . . . . . . . . . . . . . . Fastest Speed 50 | 50 90 90 150 150 150 150 145 160 160 160 160 160 160 160 175 160 Average Speed 153 | 152 102 124 150 150 150 150 155 160 160 160 160 165 163 191 175 176 Slowest Speed 2250 | 160 160 150 150 150 150 210 225 160 160 160 160 175 175 2250 175 240 Overloaded Moves . | . . . . . . . . . . . . . . . . . Propulsion Burnouts . | . . . . . . . . . . . . . . . . . Robots Hopped . | . . . . . . . . . . . . . . . . . Cave-ins Triggered . | . . . . . . . . . . . . . . . . . Exploration Rate (%) 67 | 4 98 83 99 62 26 93 31 97 97 68 78 33 97 48 82 46 Regions Visited 16 Branch Regions 11 Pre-discovered Areas 9 | . 2 1 . . . 2 . . 1 1 2 . . . . . Known Exits Taken 6 | . . . 1 . 1 1 1 . . . 1 1 . . . . Unknown Exits Taken 10 | 1 1 1 . 1 . . . 1 1 1 . . 1 1 1 . Scrap Searched 14 | . . . 3 . 1 . . 2 5 . 3 . . . . . Spaces Dug 91 | . . . . . . 2 11 . 6 . . 27 . . . 45 Terrain Destroyed 790 | . 4 10 . . . 2 12 17 47 . . 83 114 . . 501 Melee 34 | . . . . . . 2 9 . . . . 19 . . . 4 Projectile 80 | . . . . . . . 3 . 2 . . 13 25 . . 37 AOE 676 | . 4 10 . . . . . 17 45 . . 51 89 . . 460 Terrain Rammed . | . . . . . . . . . . . . . . . . . Walls Destroyed . | . . . . . . . . . . . . . . . . . Machines Disabled . | . . . . . . . . . . . . . . . . . Actions | -11 -10 -9 -9 -9 -8 -8 -7 -7 -7 -7 -6 -6 -6 -6 -6 -6 --------- Run | Yrd Mat Mat Min Exi Min Mat Fac Low Low Dat Pro Fac Ext Cet Arc Hub Total 14708 | 83 852 1549 700 237 126 1802 1407 1194 1266 75 578 2254 1527 319 106 633 Wait 1391 | . 127 175 5 . 8 216 216 . 20 . 7 381 47 151 2 36 Move 11768 | 55 619 1187 678 231 109 1358 1055 1143 1199 75 552 1594 1224 128 92 469 Hop . | . . . . . . . . . . . . . . . . . Pick Up 171 | 8 12 31 4 1 2 28 15 1 1 . 5 26 25 4 2 6 Fast Attach 74 | 6 11 8 . . . 8 10 2 1 . . 4 8 5 1 10 Attach 53 | 1 2 6 . . . 14 2 . . . . 6 8 3 . 11 Detach 5 | . . 1 . . . . . . . . . . . 2 . 2 Swap 203 | . 6 10 2 1 . 17 21 17 12 . 3 65 30 5 3 11 Drop 235 | . 17 26 4 4 2 26 35 1 4 . 5 50 33 13 5 10 Fire 690 | 13 58 105 7 . 5 132 42 23 26 . 6 101 96 8 1 67 Melee 54 | . . . . . . 3 11 7 3 . . 25 . . . 5 Ram 2 | . . . . . . . . . . . . 1 . . . 1 Kick . | . . . . . . . . . . . . . . . . . Crush . | . . . . . . . . . . . . . . . . . Escape Stasis . | . . . . . . . . . . . . . . . . . Rewire 56 | . . . . . . . . . . . . . 56 . . . Trap 6 | . . . . . . . . . . . . 1 . . . 5 Miscellaneous . | . . . . . . . . . . . . . . . . . Route ------- -11/Scrapyard -10/Materials (discovered 4 exits: *Mat x3 / [*Min]) -9/Materials (discovered 4 exits: *Mat x3 / [*Min]) -9/Mines (discovered 3 exits: *Mat x2 / *Exi) -9/Exiles (discovered 2 exits: [*Min x2]) -8/Mines (discovered 2 exits: *Mat x2) -8/Materials (discovered 3 exits: *Fac x3) -7/Factory (discovered 2 exits: Sto / *Low) -7/Lower Caves -7/Lower Caves (discovered 2 exits: *Fac / *Dat) -7/Data Miner -6/Proximity Caves -6/Factory (discovered 6 exits: *Fac x2 / *Low x2 / *Ext x2) -6/Extension (discovered 2 exits: *Fac / *Cet) -6/Cetus -6/Archives (discovered 3 exits: *Fac / *Hub x2) -6/Hub_04(d) (discovered 3 exits: *Fac x3) History --------- Turn | Location | Event 46 | -11/Scrapyard | Discovered new exit (range 15) 138 | -11/Scrapyard | Entered Materials 320 | -10/Materials | Build established: Mutant 469 | -10/Materials | Discovered new exit (range 13) 594 | -10/Materials | Repaired Arm. Wheel 627 | -10/Materials | Repaired Med. Armor Plating 676 | -10/Materials | Discovered new exit (range 15) 884 | -10/Materials | Discovered new exit (range 16) 950 | -10/Materials | Discovered new exit (range 16) 1117 | -10/Materials | Entered another Materials area 1117 | -9/Materials | Evolved 2 slots: Weapon x2 1254 | -9/Materials | Repaired Broken Arm. Wheel 1287 | -9/Materials | Repaired Med. Armor Plating 1410 | -9/Materials | Build established: Tank 1582 | -9/Materials | Discovered new exit (range 16) 1699 | -9/Materials | Central database locked down 1704 | -9/Materials | Discovered new exit (range 11) 1787 | -9/Materials | Learned location of 1 exit from Recycling 1814 | -9/Materials | Identified exit to Materials 1830 | -9/Materials | Learned Storage security intel 1839 | -9/Materials | Loaded intel: 2 recycling unit locations 1885 | -9/Materials | Loaded intel: 12 terminal locations 2717 | -9/Materials | First assault squad dispatched 3208 | -9/Materials | Entered Mines 3578 | -9/Mines | Learned Materials trap positions 3588 | -9/Mines | Learned location of 1 exit from Materials 3651 | -9/Mines | Identified exit to Exiles 3663 | -9/Mines | Deemed a non-threat by the Exiles lab entrance 4260 | -9/Mines | Entered Exiles 4283 | -9/Exiles | Discovered new exit (range 15) 4326 | -9/Exiles | Met 8R-AWN 4347 | -9/Exiles | Met EX-HEX 4392 | -9/Exiles | Met EX-BIN 4410 | -9/Exiles | Aligned with FarCom system 4412 | -9/Exiles | Given EX-Vault access code 4448 | -9/Exiles | Opened EX-Vault 4461 | -9/Exiles | Found Flying Fortress v7 4494 | -9/Exiles | Warned to stay clear of 0b10 Research branches 4513 | -9/Exiles | Exiles lab attacked by MAIN.C 4595 | -9/Exiles | Discovered new exit (range 14) 4611 | -9/Exiles | Left Exiles lab with Flying Fortress v7 4611 | -9/Exiles | Entered Mines 4671 | -8/Mines | Discovered exit to Materials (range 7) 4785 | -8/Mines | Discovered exit to Materials (range 12) 4803 | -8/Mines | Entered Materials 4803 | -8/Materials | Evolved 2 slots: Utility x2 4804 | -8/Materials | Identified exit to Factory 4805 | -8/Materials | Loaded intel: 16 trap records 4903 | -8/Materials | Build established: Skirmisher 5173 | -8/Materials | Garrison activated, responded to threat 5390 | -8/Materials | Build established: Tank 6747 | -8/Materials | Learned 4 Factory zone layouts 6795 | -8/Materials | Learned Storage stockpile data 6803 | -8/Materials | First assault squad dispatched 6863 | -8/Materials | Learned location of Storage (-7) 6893 | -8/Materials | Learned Storage trap positions 6926 | -8/Materials | Learned location of 1 exit from Recycling 6956 | -8/Materials | Learned location of 1 exit from Extension 6994 | -8/Materials | Learned Factory scanalyzer intel 7096 | -8/Materials | Repaired Arm. Wheel 7129 | -8/Materials | Repaired Arm. Wheel 7214 | -8/Materials | Repaired Imp. Propulsion Shielding 7279 | -8/Materials | Lost 4 parts (1u3w) 7283 | -8/Materials | Repaired Arm. Wheel 7605 | -8/Materials | Entered Factory 7605 | -7/Factory | Evolved 2 slots: Utility x2 7606 | -7/Factory | Identified exit to Storage 7607 | -7/Factory | Identified exit to Lower Caves 7608 | -7/Factory | Loaded intel: 4 scanalyzer locations 7627 | -7/Factory | Build established: Skirmisher 8191 | -7/Factory | Build established: Assassin 8543 | -7/Factory | Repaired Arm. Wheel 8915 | -7/Factory | Repaired Structural Scanner 9449 | -7/Factory | Build established: Tank 9689 | -7/Factory | Entered Lower Caves 10019 | -7/Lower Caves | Build established: Gunner 10290 | -7/Lower Caves | Discovered new exit (range 10) 10353 | -7/Lower Caves | Learned Factory non-interactive machine intel 11275 | -7/Lower Caves | Encountered a Warlord checkpoint 11296 | -7/Lower Caves | Learned Factory stockpile data 11309 | -7/Lower Caves | Learned Factory garrison access intel 11640 | -7/Lower Caves | Entered another Lower Caves area 11762 | -7/Lower Caves | Learned Factory trap positions 12212 | -7/Lower Caves | Discovered new exit (range 7) 12231 | -7/Lower Caves | Learned Factory stockpile data 12735 | -7/Lower Caves | Encountered a Warlord checkpoint 12904 | -7/Lower Caves | Learned location of Zion (-6) 13204 | -7/Lower Caves | Discovered new exit (range 8) 13260 | -7/Lower Caves | Ambushed by wild Derelicts 13686 | -7/Lower Caves | Entered Data Miner 13686 | -7/Data Miner | Discovered new exit (range 6) 13717 | -7/Data Miner | Met Data Miner 13744 | -7/Data Miner | Learned location of Section 7 (-2) 13744 | -7/Data Miner | Acquired the access code to Warlord's prototype stash 13770 | -7/Data Miner | Received God Mode back door access code from Data Miner 13806 | -7/Data Miner | Entered Proximity Caves 14129 | -6/Proximity Caves | Spotted B-75 Beast 14197 | -6/Proximity Caves | Attracted the attention of an 0b10 checkpoint 14237 | -6/Proximity Caves | Identified exit to Factory 14500 | -6/Proximity Caves | Build established: Tank 14730 | -6/Proximity Caves | Entered Factory 14730 | -6/Factory | Evolved 2 slots: Power x1, Utility x1 14731 | -6/Factory | Loaded intel: 104 trap records 14733 | -6/Factory | Loaded intel: 228 non-interactive machine locations 14734 | -6/Factory | Loaded intel: 4 garrison access locations 15723 | -6/Factory | Repaired Broken Prc. Assault Rifle 15765 | -6/Factory | Identified exit to Lower Caves 15765 | -6/Factory | Identified exit to Extension 16064 | -6/Factory | Discovered new exit (range 15) 16076 | -6/Factory | Build established: Hacker-Tank 16245 | -6/Factory | Spotted B-75 Beast 16270 | -6/Factory | Destroyed B-75 Beast 16415 | -6/Factory | Fabricated KE Penetrator? 16542 | -6/Factory | Build established: Tank 17458 | -6/Factory | Discovered new exit (range 13) 18263 | -6/Factory | Entered Extension 18264 | -6/Extension | Identified exit to Factory 18417 | -6/Extension | Spotted B-75 Beast 18427 | -6/Extension | Spotted B-75 Beast 18463 | -6/Extension | Disrupted transfer network 18468 | -6/Extension | Destroyed B-75 Beast 18474 | -6/Extension | Destroyed B-75 Beast 18496 | -6/Extension | Lost 5 parts (1n3u1w) 18909 | -6/Extension | Disrupted transfer network 18915 | -6/Extension | Discovered new exit (range 16) 18928 | -6/Extension | Destroyed 7 combat bots 18944 | -6/Extension | Build established: Skirmisher 19074 | -6/Extension | Incoming investigation squad redirected 19313 | -6/Extension | First assault squad dispatched 19319 | -6/Extension | Rescued a captive Derelict 19320 | -6/Extension | Rescued a captive Derelict 19334 | -6/Extension | Incoming assault squad redirected 19352 | -6/Extension | Rescued a captive Derelict 19354 | -6/Extension | Rescued a captive Derelict 19372 | -6/Extension | Build established: Tank 19706 | -6/Extension | Lost 3 allies 19718 | -6/Extension | Rescued a captive Derelict 19719 | -6/Extension | Rescued a captive Derelict 19782 | -6/Extension | Lost 4 allies 19969 | -6/Extension | Rescued a captive Derelict 20026 | -6/Extension | Rescued a captive Derelict 20049 | -6/Extension | Rescued a captive Derelict 20058 | -6/Extension | Rescued a captive Derelict 20092 | -6/Extension | Rescued A7 20266 | -6/Extension | Incoming assault squad redirected 20302 | -6/Extension | Lost 4 allies 20386 | -6/Extension | Build established: Scavenger-Tank 20739 | -6/Extension | Entered Cetus 20739 | -6/Cetus | Accompanied by 4 allies (A7) 20744 | -6/Cetus | Acquired a Cetus Manufacturing Module code from A7 20760 | -6/Cetus | Spotted Cetus Guard 20760 | -6/Cetus | Spotted Cetus Guard 20762 | -6/Cetus | Spotted Cetus Guard 20762 | -6/Cetus | Spotted Cetus Guard 20771 | -6/Cetus | Destroyed Cetus Guard 20779 | -6/Cetus | Allies destroyed Cetus Guard 20783 | -6/Cetus | Destroyed Cetus Guard 20790 | -6/Cetus | Allies destroyed Cetus Guard 20834 | -6/Cetus | System corruption reached 10% 20979 | -6/Cetus | Started Cetus Manufacturing Module 21004 | -6/Cetus | Manufactured an Enhanced Grunt 21029 | -6/Cetus | Manufactured an Enhanced Grunt 21054 | -6/Cetus | Manufactured an Enhanced Grunt 21079 | -6/Cetus | Manufactured an Enhanced Grunt 21104 | -6/Cetus | Manufactured an Enhanced Grunt 21159 | -6/Cetus | Discovered new exit (range 15) 21187 | -6/Cetus | Entered Archives 21187 | -6/Archives | Accompanied by 7 allies (A7) 21238 | -6/Archives | Unable to access archive contents 21245 | -6/Archives | Discovered exit to Factory (range 14) 21275 | -6/Archives | Discovered new exit (range 16) 21291 | -6/Archives | Discovered new exit (range 16) 21361 | -6/Archives | Entered Hub_04(d) 21361 | -6/Hub_04(d) | Accompanied by 5 allies 21446 | -6/Hub_04(d) | Discovered exit to Factory (range 15) 21446 | -6/Hub_04(d) | Discovered exit to Factory (range 4) 22150 | -6/Hub_04(d) | Discovered exit to Factory (range 5) 22282 | -6/Hub_04(d) | Network Hub disabled 22282 | -6/Hub_04(d) | Network Hub disabled 22288 | -6/Hub_04(d) | Spotted Lightning 22291 | -6/Hub_04(d) | Spotted Lightning 22295 | -6/Hub_04(d) | Disrupted transfer network 22295 | -6/Hub_04(d) | Core integrity fell below 50% 22297 | -6/Hub_04(d) | Spotted Lightning 22307 | -6/Hub_04(d) | Spotted Lightning 22307 | -6/Hub_04(d) | Destroyed Lightning 22310 | -6/Hub_04(d) | Destroyed Lightning 22321 | -6/Hub_04(d) | Spotted Lightning 22326 | -6/Hub_04(d) | Destroyed Lightning 22328 | -6/Hub_04(d) | Garrison activated, responded to threat 22336 | -6/Hub_04(d) | Spotted Lightning 22343 | -6/Hub_04(d) | Destroyed Lightning 22360 | -6/Hub_04(d) | System corruption reached 30% 22370 | -6/Hub_04(d) | Destroyed Lightning 22404 | -6/Hub_04(d) | Destroyed 16 combat bots 22411 | -6/Hub_04(d) | First assault squad dispatched 22416 | -6/Hub_04(d) | Destroyed Lightning 22460 | -6/Hub_04(d) | Core integrity fell below 20% 22481 | -6/Hub_04(d) | Lost 14 parts (1p1n6u6w) 22492 | -6/Hub_04(d) | Destroyed by G-50 Soldier with Heavy Laser Last Messages --------------- 22481_ G-67 Veteran heat damages Plasma Rifle. 22481_ U-05 Engineer builds a Wall. 22482_ G-67 Veteran heat damages core (-17). 22483_ Gauss Rifle severed. 22485_ Quantum Reactor destroyed. 22485_ KE Penetrator destroyed. 22486_ U-05 Engineer builds a Wall. 22486_ Critical hit (Burn: +37). 22486_ System Shield destroyed. 22486_ Adv. Targeting Computer destroyed. 22486_ System corrupted by crushing effect (+3). 22486_ System corrupted by crushing effect (+1). 22488_ System corrupted: Component data lost. 22488_ Centrium Heavy Treads destroyed. 22488_ System corrupted: Wave Gun failed to cycle. 22489_ Wave Gun destroyed. 22490_ Slammed into G-50 Soldier. 22490_ U-05 Engineer lays Concrete. 22491_ The unstable cave ceiling collapses. Map ----- +----------------------------------------------------+ | #???? ???? ? ???????????????????????????????????? | | #???#??"????????????????????????????????????????? | | ##?##?? ????"?? ????????????????????????????????? | | ##???? ?????????????????????????????????????????? | | #??????? ? "????????????????????????????????????? | | #?????? ???????? ???????????????????????????????? | | #??????#????????????????????????????????????????? | | #????#??#???#???????????????????????????????????? | | #?#????????? ???????????????????????????????????? | | #?? ??? ???????????????????????????#????????????? | | #??????????? ??????????????? ? =#????????????? | | #?? ? ????????? ??????????????? ? #????????????? | | #???????????????????########### ? #????????????? | | #?#??#??????#????? = #! ## ? #????????????? | | #???????????#?????? = # ## #? ??????????? | | #?????????????????? " ## " #? ??????????? | | #? ?? ??? ????????? " " #? " !#????????#???? | | #????? ????#?#?????" " #? " ???????! #???? | | #???" ?""????# "??? #? % ??##?#? ## ?? | | #?? ?????? ?? ###/#?# ###" ?? | | # """ ""??#???## ####+### # #*## " ? | | #? ?????# % ## [=%[; " ? | | # """ """ #??## gig *!!;;;;;"" # ?? | | # ?????# b != *=;; #??? | | "#####+#??#?#?# g#lb[ =/%;; #??? | | ##### ##? ? ??# < @ =[ =#"" #### | | + " " # % u# /% ; ## | | #? " " # # ### # ; "" | | #? " " # ## == ; "" | | ## ?# % # " " | | "#+#### ########## # # ### ## | | *%! "! *= = p # | | !% ! "! = # | | =%! !%* ## % # # # # # + | | ![! = #? ## # # | | #?# # #? ### !### | | * #?# ## #? # #++### | | [%= #??? ?## # #?## " !^^ | | #?#?#???#* ? ?#? # ^^ | | #???????%! ? #??? ^" | | ####### ##???????=%""""?"????? """ | | ####+##????# #?????????#? ???? ?? """"" | | +##? ?? ?# #?#???????????? ?????#?# """"""" | | ???# """ ??" #??? ???? ???????? ?????# """"" | | ???# ## #??? ???????????????????# """ | | ???# """ # ????????#???????""? ??# " | | ???# + ??????????????"????????# | | ???# """ # ??????????? ???"???????########## | | ???# # #???????????????????????????????? | | ???# """? ## ##???????????????? ???#?#???????? | +----------------------------------------------------+ Best States ------------- Heat Dissipation 86 Coolant Potential 65 Energy Generation 41 Energy Capacity 575 Matter Stores 300 Matter Capacity 300 Sight Range 16 Terrain Scan Range 20 Terrain Scan Density 10 Armor Coverage 1200 Resistance: TH 15 Propulsion Shielding 66 Weapon Shielding 33 Weapon Cycling 15 Evasion (%) 42 Targeting Accuracy 8 Recoil Reduction 2 Offensive Hacking 24 Defensive Hacking 12 Authchip Count 1 Trap Extractor Capacity 6 Item Schematics ----------------- Arm. Wheel | -9/Materials | Scanalyzed Med. Armor Plating | -9/Materials | Scanalyzed Disposable Heat Sink | -9/Materials | Extracted Visual Processing Unit | -9/Materials | Extracted Hvy. Assault Rifle | -9/Materials | Extracted Hacking Suite | -9/Materials | Scanalyzed Huge Storage Unit | -9/Materials | Scanalyzed Lrg. Storage Unit | -9/Materials | Scanalyzed Arm. Treads | -8/Materials | Scanalyzed Hpw. Tractor Beam | -8/Materials | Scanalyzed Adv. Targeting Computer | -8/Materials | Scanalyzed Adv. Visual Processing Unit | -8/Materials | Scanalyzed Propulsion Shielding | -8/Materials | Hacked Imp. Cooling System | -7/Factory | Scanalyzed Gatling Laser | -7/Factory | Hacked Matter Filter | -7/Factory | Hacked Combat Drone Bay | -7/Data Miner | Free Lgt. Regenerative Plating | -7/Data Miner | Free Cld. Cesium-ion Thruster | -7/Data Miner | Free Thermal Defense Suite | -7/Data Miner | Free Prc. Rocket Launcher | -7/Data Miner | Free Field Propulsion Drive | -7/Data Miner | Free Lyr. Heavy Armor Plating | -7/Data Miner | Free Disruptor Cannon | -7/Data Miner | Free Imp. Hacking Suite | -6/Factory | Scanalyzed KE Penetrator | -6/Factory | Hacked Gravmag Array | -6/Extension | Hacked Robot Schematics ------------------ G-50 Soldier | -7/Data Miner | Free M-28 Smith | -7/Data Miner | Free Y-54 Guardian | -7/Data Miner | Free X-62 Marksman | -7/Data Miner | Free M-22 Extractor | -7/Data Miner | Free R-10 Processor | -7/Data Miner | Free Fabricated ------------ KE Penetrator | x2 | -6/Factory Alien Tech Used ----------------- None Achievements -------------- Treasure Hunter Challenges ------------ None Game ------ Seed SuperquantumHeatDissipator Manual? 0 Play Time 03:53:08 Cumulative 120.0 hours Start 2024.08.27 @ 22:22:05 End 2024.08.28 @ 17:23:20 Sessions 3 Manual Loads 0 Difficulty Rogue Special Mode None Game No. 83 Rogue 83 Adventurer 0 Explorer 0 Win Type - Total 4 Types 4/0/0/0/0/0/0/0/0 Lore% 54 Gallery% 58 Achievement% 52 Wizard Run 0 Options --------- Layout 1 ASCII 0 Keyboard 0 Movement Numpad Keybinds 0 Fullscreen 1 Font 24/Smallcaps Map View 50x35 Zoom Use 0% Tactical HUD 1 Map Filters NONE Filters NONE Steam 1 RUN: b11b4e0b-4a16-41ed-b502-eee47a57c6d9